bitfinex/quotes_BTCUSD_20250523
["timestamp","ask_amount","ask_price","bid_price","bid_amount"]
[1748013571000,1.18416695,109190.0,109180.0,2.13669542]
[1748013572827,1.18416695,109190.0,109180.0,2.04889542]
[1748013573287,1.21616695,109190.0,109180.0,1.40969642]
[1748013573772,1.21616695,109190.0,109180.0,0.74493642]
[1748013573974,1.33751251,109190.0,109180.0,0.00973642]
[1748013574144,1.33751251,109190.0,109180.0,0.67445642]
[1748013575201,1.33751251,109190.0,109180.0,0.66572]
[1748013577974,1.33751251,109190.0,109180.0,0.001]
[1748013578171,1.33751251,109190.0,109180.0,0.6658]
[1748013578385,1.42171235,109190.0,109180.0,0.6658]
[1748013579886,1.42171235,109190.0,109180.0,0.001]
[1748013580331,1.42171235,109190.0,109180.0,0.27548]
[1748013580552,2.04025336,109190.0,109180.0,0.27548]
[1748013580804,2.02571251,109190.0,109180.0,0.27548]
[1748013581632,1.99391251,109190.0,109180.0,0.27548]
[1748013581902,1.96191251,109190.0,109180.0,0.27548]
[1748013582099,1.96191251,109190.0,109180.0,0.61548]
[1748013582326,1.18416695,109190.0,109180.0,0.61548]
[1748013583662,1.18416695,109190.0,109180.0,2.08356]
[1748013583871,1.18416695,109190.0,109180.0,1.630796]
[1748013584761,1.18416695,109190.0,109180.0,1.63954812]
[1748013585162,1.18416695,109190.0,109180.0,1.57191012]
[1748013585338,1.18416695,109190.0,109180.0,0.34975212]
[1748013585565,1.18416695,109190.0,109180.0,1.11824812]
[1748013586110,1.18416695,109190.0,109180.0,0.77724812]
[1748013586516,1.18416695,109190.0,109180.0,0.768496]
[1748013588056,1.18416695,109190.0,109180.0,1.108496]
[1748013588462,1.18416695,109190.0,109180.0,1.135518]
[1748013589689,1.18416695,109190.0,109180.0,1.01291225]
[1748013590280,1.18416695,109190.0,109180.0,1.19830625]
[1748013592752,1.18416695,109190.0,109180.0,1.14163225]
[1748013592957,1.30371251,109190.0,109180.0,0.39843225]
[1748013593162,1.27371251,109190.0,109180.0,0.67291225]
[1748013593794,0.19234274,109180.0,109170.0,0.41199298]
[1748013593999,0.19234274,109180.0,109170.0,2.05925198]
[1748013594179,0.19234274,109180.0,109170.0,1.26299198]
[1748013594381,0.19234274,109180.0,109170.0,1.92715198]
[1748013594577,0.19234274,109180.0,109170.0,1.31766498]
[1748013594926,0.19234274,109180.0,109170.0,0.65350498]
[1748013595184,0.19234274,109180.0,109170.0,1.32642784]
[1748013595369,0.19234274,109180.0,109170.0,1.32842784]
[1748013596162,0.19234274,109180.0,109170.0,1.33042784]
[1748013596959,0.19234274,109180.0,109170.0,0.66626784]
[1748013597309,0.3127883,109180.0,109170.0,1.08891584]
[1748013597738,0.2818883,109180.0,109170.0,1.08891584]
[1748013598743,0.2818883,109180.0,109170.0,1.08015298]
[1748013598950,0.3122883,109180.0,109170.0,0.07599298]
[1748013599285,0.3449883,109180.0,109170.0,0.74015298]
[1748013600921,0.3449883,109180.0,109170.0,0.07599298]
[1748013601077,0.3449883,109180.0,109170.0,0.74015298]
[1748013601663,0.3122883,109180.0,109170.0,0.74015298]
[1748013601870,0.19234274,109180.0,109170.0,0.74015298]
[1748013603467,0.3135883,109180.0,109170.0,0.46567298]
[1748013603688,0.3448883,109180.0,109170.0,0.74015298]
[1748013603893,0.35397424,109180.0,109170.0,0.07599298]
[1748013604133,0.35397424,109180.0,109170.0,0.74015298]
[1748013604134,0.36851509,109180.0,109170.0,0.74015298]
[1748013604526,0.35942915,109180.0,109170.0,0.07599298]
[1748013604736,1.05762915,109180.0,109170.0,0.74019298]
[1748013604959,1.41958396,109180.0,109170.0,0.07399298]
[1748013605171,1.74958396,109180.0,109170.0,0.07399298]
[1748013605375,1.74958396,109180.0,109170.0,0.07199298]
[1748013605577,1.83910547,109180.0,109170.0,0.07199298]
[1748013605785,1.38762915,109180.0,109170.0,0.07199298]
[1748013606006,1.39762915,109180.0,109170.0,0.34647298]
[1748013606444,1.76358396,109180.0,109170.0,0.34647298]
[1748013607459,1.76758396,109180.0,109170.0,0.34647298]
[1748013607722,1.05562915,109180.0,109170.0,0.34647298]
[1748013610098,0.2898883,109180.0,109170.0,0.34647298]
[1748013610320,0.1158635,109180.0,109170.0,0.75091283]
[1748013610542,0.01715859,109180.0,109170.0,3.08132153]
[1748013610763,0.9287692,109190.0,109180.0,0.61396018]
[1748013610978,1.1302525,109190.0,109180.0,3.9083295]
[1748013611187,0.91961136,109190.0,109180.0,3.92664711]
[1748013611428,1.13025208,109190.0,109180.0,4.58108852]
[1748013611871,1.12109449,109190.0,109180.0,4.58108852]
[1748013612080,0.85963846,109190.0,109180.0,4.68895135]
[1748013612291,0.76084241,109190.0,109180.0,4.68895135]
[1748013612498,0.76084241,109190.0,109180.0,4.6976929]
[1748013612685,0.62651383,109190.0,109180.0,4.6976929]
[1748013612930,0.5276556,109190.0,109180.0,4.75813375]
[1748013613153,0.00915599,109210.0,109200.0,0.58182169]
[1748013613328,0.21060274,109210.0,109200.0,4.08205856]
[1748013613562,0.20144649,109210.0,109200.0,0.541856]
[1748013613825,0.20144649,109210.0,109200.0,1.205456]
[1748013614439,0.20159876,109210.0,109200.0,1.205456]
[1748013614796,0.20159876,109210.0,109200.0,1.208456]
[1748013615510,0.20159876,109210.0,109200.0,1.40076368]
[1748013615706,0.00930818,109210.0,109200.0,1.49176207]
[1748013615899,0.21516404,109230.0,109220.0,0.19227238]
[1748013616092,0.02746647,109220.0,109210.0,0.58168694]
[1748013616292,0.21965291,109220.0,109210.0,4.94404895]
[1748013616489,0.03662281,109220.0,109210.0,4.94404895]
[1748013616846,0.02746656,109220.0,109210.0,4.97674895]
[1748013617054,0.0183109,109220.0,109210.0,4.97674895]
[1748013617257,0.0183109,109220.0,109210.0,5.06629451]
[1748013617258,0.00915507,109220.0,109210.0,5.06629451]
[1748013617439,0.0137546,109230.0,109220.0,0.61438295]
[1748013617590,0.04121772,109230.0,109220.0,4.40572651]
[1748013617800,0.00156054,109230.0,109220.0,4.40572651]
[1748013618215,0.00915365,109240.0,109220.0,3.94336372]
[1748013618399,0.00915365,109240.0,109230.0,4.69862344]
[1748013618598,0.35830747,109240.0,109230.0,4.71693216]
[1748013618806,0.35830713,109240.0,109230.0,4.71693216]
[1748013619012,0.34915348,109240.0,109230.0,4.71693216]
[1748013619445,0.30283857,109240.0,109230.0,4.71693216]
[1748013619645,0.00915298,109250.0,109240.0,0.21054389]
[1748013619849,0.01845795,109250.0,109240.0,3.94404189]
[1748013620105,0.03676416,109250.0,109240.0,3.93488849]
[1748013620325,0.00015224,109250.0,109240.0,4.05493405]
[1748013620765,0.24818253,109290.0,109260.0,0.1830496]
[1748013620982,0.03660546,109270.0,109250.0,0.2846642]
[1748013621193,0.21963852,109270.0,109260.0,4.760238]
[1748013621369,0.20133617,109270.0,109260.0,4.760238]
[1748013621834,0.1921847,109270.0,109260.0,4.760238]
[1748013622255,0.18303315,109270.0,109260.0,4.760238]
[1748013623646,0.18303315,109270.0,109260.0,4.925228]
[1748013624530,0.18303315,109270.0,109260.0,2.410507]
[1748013624957,0.18303315,109270.0,109260.0,1.701035]
[1748013625166,0.18303315,109270.0,109260.0,1.037835]
[1748013625369,0.18303315,109270.0,109260.0,1.701035]
[1748013629102,0.18303315,109270.0,109260.0,1.95833699]
[1748013629103,0.21048672,109270.0,109260.0,1.95833699]
[1748013629315,0.20133584,109270.0,109260.0,1.037835]
[1748013629518,0.20133584,109270.0,109260.0,1.700875]
[1748013629729,0.19218462,109270.0,109260.0,1.700875]
[1748013629937,0.19218462,109270.0,109260.0,1.89307699]
[1748013630384,0.19218462,109270.0,109260.0,1.91138152]
[1748013630586,0.21048748,109270.0,109260.0,1.92053366]
[1748013630788,0.21048748,109270.0,109260.0,1.91138152]
[1748013630993,0.21048748,109270.0,109260.0,1.92053366]
[1748013631204,0.21048748,109270.0,109260.0,1.92968563]
[1748013631438,0.01830269,109270.0,109260.0,1.92968513]
[1748013631643,6e-05,109290.0,109280.0,0.2104675]
[1748013631899,0.00021221,109290.0,109280.0,4.67939106]
[1748013632383,0.00021221,109290.0,109280.0,4.75716397]
[1748013632613,0.2599954,109340.0,109330.0,0.34]
[1748013632845,0.25085021,109340.0,109330.0,0.39492]
[1748013633105,0.37400335,109340.0,109330.0,0.39492]
[1748013633355,0.00914921,109290.0,109280.0,0.97331792]
[1748013633585,0.19214275,109300.0,109290.0,0.21959803]
[1748013633586,0.01829717,109300.0,109290.0,0.21959803]
[1748013633771,0.01829717,109300.0,109290.0,2.31908803]
[1748013634041,0.02744613,109300.0,109290.0,2.31908803]
[1748013634241,0.01829742,109300.0,109290.0,2.98208803]
[1748013635085,0.21957787,109300.0,109290.0,2.98208803]
[1748013635294,0.18299442,109310.0,109300.0,0.55957769]
[1748013635295,0.0091477,109310.0,109300.0,0.55957769]
[1748013635499,0.21955777,109310.0,109300.0,2.40489123]
[1748013635703,0.04574019,109310.0,109300.0,2.40489123]
[1748013635878,0.01829557,109310.0,109300.0,2.41403977]
[1748013636082,0.01829365,109320.0,109310.0,0.21955735]
[1748013636379,0.03658814,109320.0,109310.0,1.79180335]
[1748013636799,0.03658805,109320.0,109310.0,1.79180335]
[1748013637012,0.0165434,109340.0,109330.0,0.21037124]
[1748013637221,0.01705098,109340.0,109330.0,4.75522024]
[1748013637383,0.04448698,109340.0,109330.0,4.44579724]
[1748013637769,0.36990335,109340.0,109330.0,1.39772]
[1748013637973,0.36990335,109340.0,109330.0,1.05772]
[1748013638110,0.42518373,109340.0,109330.0,0.39488]
[1748013638337,0.37830207,109340.0,109330.0,1.05772]
[1748013639269,0.38030207,109340.0,109330.0,1.05772]
[1748013640730,0.26820221,109340.0,109330.0,1.7447794]
[1748013640934,0.26820221,109340.0,109330.0,1.75392585]
[1748013641054,0.06699498,109340.0,109330.0,1.75392585]
[1748013641259,0.06403173,109340.0,109330.0,1.75392585]
[1748013641565,0.2145004,109350.0,109340.0,0.52291512]
[1748013641566,0.00914478,109350.0,109340.0,0.52291512]
[1748013641816,0.21048525,109350.0,109340.0,1.11151612]
[1748013642029,0.21048525,109350.0,109340.0,0.91745112]
[1748013642229,0.01844094,109350.0,109340.0,0.90475843]
[1748013642407,0.01844094,109350.0,109340.0,0.90475851]
[1748013642408,0.00929642,109350.0,109340.0,0.90475851]
[1748013642610,0.01844094,109350.0,109340.0,0.91390404]
[1748013642793,0.02758563,109350.0,109340.0,0.90475851]
[1748013642996,0.02758555,109350.0,109340.0,0.91390404]
[1748013643234,0.03673024,109350.0,109340.0,0.91390404]
[1748013643582,0.03673024,109350.0,109340.0,0.92258028]
[1748013643787,0.00015215,109350.0,109340.0,0.94087091]
[1748013643958,0.00929634,109350.0,109340.0,0.94087091]
[1748013644182,0.0184407,109350.0,109340.0,0.94087091]
[1748013644388,0.00015215,109350.0,109340.0,0.96432572]
[1748013644595,0.0184407,109350.0,109340.0,0.93172572]
[1748013644799,0.02758514,109350.0,109340.0,0.93172564]
[1748013645003,0.03672975,109350.0,109340.0,0.94087083]
[1748013645231,0.03672975,109350.0,109340.0,0.94087092]
[1748013645441,0.02758522,109350.0,109340.0,0.94087033]
[1748013645645,0.03672991,109350.0,109340.0,0.93172514]
[1748013645876,0.03672991,109350.0,109340.0,0.94087033]
[1748013646086,0.00015215,109350.0,109340.0,0.97397033]
[1748013646512,0.00015215,109350.0,109340.0,1.18457881]
[1748013646725,0.00015215,109350.0,109340.0,1.19544288]
[1748013647249,0.00015215,109350.0,109340.0,1.18090203]
[1748013647460,0.00015215,109350.0,109340.0,1.84686203]
[1748013647656,0.00015215,109350.0,109340.0,1.18490203]
[1748013647972,0.00015215,109350.0,109340.0,1.85086203]
[1748013648177,0.00015215,109350.0,109340.0,1.83999796]
[1748013648360,0.00015215,109350.0,109340.0,1.85453881]
[1748013648752,0.00015215,109350.0,109340.0,1.78011674]
[1748013648947,0.00015215,109350.0,109340.0,1.11815674]
[1748013649169,0.00015215,109350.0,109340.0,1.78011674]
[1748013650403,0.00015215,109350.0,109340.0,1.76557589]
[1748013650639,0.02742831,109370.0,109360.0,0.55031379]
[1748013650832,0.21943691,109370.0,109360.0,3.96269579]
[1748013651011,0.0457146,109370.0,109360.0,2.03379403]
[1748013651220,0.22858085,109370.0,109360.0,2.03379403]
[1748013651420,0.02742889,109370.0,109360.0,2.04293755]
[1748013651671,0.21943766,109370.0,109360.0,2.04293755]
[1748013651913,0.21943766,109370.0,109360.0,1.99616755]
[1748013652119,0.23135187,109370.0,109360.0,0.54947624]
[1748013652298,0.23135187,109370.0,109360.0,0.82355624]
[1748013652743,0.23135187,109370.0,109360.0,0.34967624]
[1748013652945,0.26335187,109370.0,109360.0,1.01147624]
[1748013653165,0.26335187,109370.0,109360.0,1.01247624]
[1748013653368,0.26335187,109370.0,109360.0,0.35067624]
[1748013653577,0.26335187,109370.0,109360.0,1.01247624]
[1748013653790,0.35289743,109370.0,109360.0,0.35067624]
[1748013654173,0.35289743,109370.0,109360.0,1.03931824]
[1748013654620,0.35289743,109370.0,109360.0,1.030642]
[1748013655440,0.35289743,109370.0,109360.0,0.690642]
[1748013655648,0.35289743,109370.0,109360.0,1.030642]
[1748013656905,0.32089743,109370.0,109360.0,1.030642]
[1748013657112,0.29069743,109370.0,109360.0,1.030642]
[1748013657291,0.29069743,109370.0,109360.0,1.21352422]
[1748013657292,0.20115187,109370.0,109360.0,1.21352422]
[1748013657528,0.20115187,109370.0,109360.0,1.030642]
[1748013657938,0.19200877,109370.0,109360.0,1.89657133]
[1748013658354,0.19200877,109370.0,109360.0,1.91441127]
[1748013658559,0.1828655,109370.0,109360.0,1.92355521]
[1748013658975,0.1828655,109370.0,109360.0,1.91441127]
[1748013659193,0.1828655,109370.0,109360.0,1.03933792]
[1748013659194,0.2134655,109370.0,109360.0,1.03933792]
[1748013659405,0.33621106,109370.0,109360.0,1.03933792]
[1748013659617,0.33621106,109370.0,109360.0,0.38838823]
[1748013659835,0.33021106,109370.0,109360.0,1.05018823]
[1748013660065,0.33021106,109370.0,109360.0,1.04818823]
[1748013660661,0.33021106,109370.0,109360.0,1.03733792]
[1748013660889,0.33021106,109370.0,109360.0,0.37553792]
[1748013661071,0.33021106,109370.0,109360.0,1.01049592]
[1748013661505,0.34475191,109370.0,109360.0,1.01049592]
[1748013661627,0.34475191,109370.0,109360.0,0.34869592]
[1748013661839,0.35321631,109370.0,109360.0,1.01049592]
[1748013662052,0.33867546,109370.0,109360.0,1.01049592]
[1748013662468,0.33867546,109370.0,109360.0,0.34869592]
[1748013662666,0.33867546,109370.0,109360.0,1.01049592]
[1748013663083,0.2159299,109370.0,109360.0,1.01049592]
[1748013663304,0.0084644,109370.0,109360.0,1.21166611]
[1748013663508,0.20115179,109370.0,109360.0,1.20252225]
[1748013663711,0.20115179,109370.0,109360.0,1.21166593]
[1748013663910,0.20115179,109370.0,109360.0,2.37630816]
[1748013664177,0.20115179,109370.0,109360.0,1.96166825]
[1748013664407,0.20115179,109370.0,109360.0,1.97081219]
[1748013664591,0.20115179,109370.0,109360.0,1.97995605]
[1748013664831,0.20115179,109370.0,109360.0,1.48347592]
[1748013665008,0.19200869,109370.0,109360.0,1.64915361]
[1748013665383,0.1828655,109370.0,109360.0,1.83203583]
[1748013665587,0.1828655,109370.0,109360.0,1.65829772]
[1748013665804,0.2153655,109370.0,109360.0,0.58458261]
[1748013665964,0.30491106,109370.0,109360.0,1.02504361]
[1748013666579,0.1828655,109370.0,109360.0,1.94722561]
[1748013666784,0.1828655,109370.0,109360.0,1.10813861]
[1748013666785,0.30521106,109370.0,109360.0,1.10813861]
[1748013667024,0.30521106,109370.0,109360.0,0.76813861]
[1748013667025,0.33621106,109370.0,109360.0,0.76813861]
[1748013667232,0.34468789,109370.0,109360.0,0.76813861]
[1748013667446,0.34468789,109370.0,109360.0,1.10447062]
[1748013669251,0.34468789,109370.0,109360.0,1.09355092]
[1748013670211,0.31368789,109370.0,109360.0,1.09355092]
[1748013671639,0.19134233,109370.0,109360.0,1.09355092]
[1748013672426,0.1828655,109370.0,109360.0,1.09355092]
[1748013673276,0.1828655,109370.0,109360.0,1.57392192]
[1748013673896,0.1828655,109370.0,109360.0,1.33474792]
[1748013675091,0.1828655,109370.0,109360.0,1.19821592]
[1748013675824,0.1828655,109370.0,109360.0,1.09355092]
[1748013676490,0.33541106,109370.0,109360.0,1.09283092]
[1748013678611,0.33541106,109370.0,109360.0,1.59283092]
[1748013678854,0.33541106,109370.0,109360.0,0.93179092]
[1748013679122,0.40262702,109370.0,109360.0,0.970095]
[1748013679368,0.40262702,109370.0,109360.0,0.61884599]
[1748013679583,0.35995191,109370.0,109360.0,0.61884599]
[1748013679797,0.36844278,109370.0,109360.0,0.61884599]
[1748013680226,0.36844278,109370.0,109360.0,0.34480599]
[1748013680430,0.36844278,109370.0,109360.0,0.61884599]
[1748013680860,0.34689752,109370.0,109360.0,0.61884599]
[1748013681323,0.34389752,109370.0,109360.0,0.61884599]
[1748013682502,0.34389752,109370.0,109360.0,0.34480599]
[1748013682722,0.34689752,109370.0,109360.0,0.61884599]
[1748013682915,0.33541106,109370.0,109360.0,0.61884599]
[1748013683125,0.33841106,109370.0,109360.0,0.61884599]
[1748013685775,0.33338814,109370.0,109360.0,0.61884599]
[1748013687363,0.30328814,109370.0,109360.0,0.61884599]
[1748013688209,0.30328814,109370.0,109360.0,0.44475636]
[1748013690667,0.30328814,109370.0,109360.0,0.44406068]
[1748013691073,0.70937092,109370.0,109360.0,0.17002068]
[1748013691296,0.77649806,109370.0,109360.0,0.17002068]
[1748013691461,0.76649806,109370.0,109360.0,0.17002068]
[1748013692466,0.75649806,109370.0,109360.0,0.17002068]
[1748013692909,0.75349806,109370.0,109360.0,0.17002068]
[1748013693049,0.76349806,109370.0,109360.0,0.17002068]
[1748013693251,0.75849806,109370.0,109360.0,0.17002068]
[1748013693885,0.75873563,109370.0,109360.0,0.17002068]
[1748013696216,0.75873563,109370.0,109360.0,0.44410068]
[1748013696217,0.37052899,109370.0,109360.0,0.44410068]
[1748013696548,0.34598814,109370.0,109360.0,0.44410068]
[1748013696754,0.35598814,109370.0,109360.0,0.44410068]
[1748013697166,0.37052899,109370.0,109360.0,0.44410068]
[1748013697367,0.36052899,109370.0,109360.0,0.44410068]
[1748013697747,0.81113,109370.0,109360.0,0.44410068]
[1748013698899,0.82113,109370.0,109360.0,0.44410068]
[1748013699096,0.81113,109370.0,109360.0,0.44410068]
[1748013699337,0.82113,109370.0,109360.0,0.44410068]
[1748013699543,0.81113,109370.0,109360.0,0.44410068]
[1748013700947,0.81961088,109370.0,109360.0,0.44410068]
[1748013701149,0.28589194,109370.0,109360.0,0.51852275]
[1748013701367,0.12131214,109370.0,109360.0,0.73798039]
[1748013701571,0.04090943,109370.0,109360.0,0.80048039]
[1748013701728,0.03176633,109370.0,109360.0,0.80048039]
[1748013701932,0.05005262,109370.0,109360.0,1.18434547]
[1748013702175,0.23291812,109370.0,109360.0,1.18434547]
[1748013702380,0.23358051,109370.0,109360.0,1.18434547]
[1748013702563,0.21943791,109370.0,109360.0,1.17520187]
[1748013702728,0.19199113,109380.0,109370.0,0.26515154]
[1748013702928,0.29067863,109380.0,109370.0,0.78084]
[1748013703136,0.1920086,109370.0,109360.0,0.17002068]
[1748013703360,0.28155416,109370.0,109360.0,0.17002068]
[1748013703564,0.28255416,109370.0,109360.0,0.17002068]
[1748013703765,0.28255416,109370.0,109360.0,0.83026068]
[1748013703766,0.31315416,109370.0,109360.0,0.83026068]
[1748013703965,0.39229445,109370.0,109360.0,0.83022068]
[1748013704142,0.35929501,109370.0,109360.0,0.83022068]
[1748013704357,0.36029501,109370.0,109360.0,0.83022068]
[1748013705068,0.35929501,109370.0,109360.0,0.83022068]
[1748013705280,0.36029501,109370.0,109360.0,0.83022068]
[1748013705500,0.4005364,109370.0,109360.0,0.83022068]
[1748013705701,0.7816159,109370.0,109360.0,0.55614068]
[1748013705878,0.7816159,109370.0,109360.0,0.17002068]
[1748013706097,0.7846159,109370.0,109360.0,0.17002068]
[1748013706899,0.79309678,109370.0,109360.0,0.17002068]
[1748013707507,0.39177589,109370.0,109360.0,0.17002068]
[1748013707907,0.38329501,109370.0,109360.0,0.17002068]
[1748013712420,0.28555416,109370.0,109360.0,0.17002068]
[1748013716538,0.30009501,109370.0,109360.0,0.17002068]
[1748013716739,0.33249501,109370.0,109360.0,0.83026068]
[1748013717385,0.31795416,109370.0,109360.0,0.83026068]
[1748013717637,0.28555416,109370.0,109360.0,0.83026068]
[1748013718962,0.37734254,109370.0,109360.0,0.83026068]
[1748013719162,0.79426289,109370.0,109360.0,0.55618068]
[1748013719590,0.43318339,109370.0,109360.0,0.55618068]
[1748013720442,0.43218339,109370.0,109360.0,0.55618068]
[1748013720830,0.43318339,109370.0,109360.0,0.55618068]
[1748013721026,0.29555416,109370.0,109360.0,0.55618068]
[1748013721881,0.29255416,109370.0,109360.0,0.55618068]
[1748013722262,0.29555416,109370.0,109360.0,0.55618068]
[1748013723357,0.32665416,109370.0,109360.0,0.55618068]
[1748013723562,0.34119501,109370.0,109360.0,0.55618068]
[1748013723770,0.83379602,109370.0,109360.0,0.17002068]
[1748013723976,0.82379602,109370.0,109360.0,0.17002068]
[1748013725567,0.37319501,109370.0,109360.0,0.17002068]
[1748013725735,0.73427451,109370.0,109360.0,0.17002068]
[1748013727742,1.06427451,109370.0,109360.0,0.17002068]
[1748013727998,1.33839451,109370.0,109360.0,0.17002068]
[1748013728632,0.20122505,109330.0,109320.0,0.33345471]
[1748013728840,0.29077061,109330.0,109320.0,0.72012229]
[1748013729030,0.29077061,109330.0,109320.0,0.68862229]
[1748013729496,0.29077061,109330.0,109320.0,0.71932229]
[1748013729708,0.29077061,109330.0,109320.0,0.99344229]
[1748013729915,0.29077061,109330.0,109320.0,0.99744229]
[1748013730115,0.29077061,109330.0,109320.0,0.69548758]
[1748013730431,0.29077061,109330.0,109320.0,0.34450758]
[1748013730644,0.29077061,109330.0,109320.0,0.39066758]
[1748013730868,0.4147816,109330.0,109320.0,0.66478758]
[1748013731080,0.7858611,109330.0,109320.0,0.00450758]
[1748013731296,0.7958611,109330.0,109320.0,0.00450758]
[1748013731507,1.1358611,109330.0,109320.0,0.00250758]
[1748013731712,1.1258611,109330.0,109320.0,0.00350758]
[1748013731923,1.1158611,109330.0,109320.0,0.00350758]
[1748013732128,1.1158611,109330.0,109320.0,0.00250758]
[1748013732341,1.1288611,109330.0,109320.0,0.00050758]
[1748013732566,1.1188611,109330.0,109320.0,0.00050758]
[1748013733595,0.7828611,109330.0,109320.0,0.00050758]
[1748013733998,1.1228611,109330.0,109320.0,0.00050758]
[1748013735027,0.37441146,109330.0,109320.0,0.27466758]
[1748013735206,0.29777061,109330.0,109320.0,0.27466758]
[1748013735415,0.29777061,109330.0,109320.0,0.65994758]
[1748013737564,0.29777061,109330.0,109320.0,0.72294758]
[1748013737802,0.28862441,109330.0,109320.0,0.72294758]
[1748013738008,0.28862441,109330.0,109320.0,0.62088207]
[1748013738236,0.28862441,109330.0,109320.0,0.63002952]
[1748013738444,0.27947796,109330.0,109320.0,0.83269293]
[1748013738646,0.27547796,109330.0,109320.0,0.83269293]
[1748013738824,0.27447796,109330.0,109320.0,0.83269293]
[1748013738985,0.27647796,109330.0,109320.0,1.10685293]
[1748013742281,0.27647796,109330.0,109320.0,0.78004]
[1748013742468,0.27647796,109330.0,109320.0,1.0542]
[1748013744431,0.27647796,109330.0,109320.0,0.39476]
[1748013744644,0.27647796,109330.0,109320.0,1.0542]
[1748013747763,0.10269201,109330.0,109320.0,1.0542]
[1748013747968,0.01314603,109330.0,109320.0,2.0401015]
[1748013748142,0.01314603,109330.0,109320.0,2.01266014]
[1748013748143,0.22351752,109330.0,109320.0,2.01266014]
[1748013748391,0.20522538,109330.0,109320.0,1.829711]
[1748013748605,0.20522538,109330.0,109320.0,1.4552]
[1748013748807,0.20122538,109330.0,109320.0,1.3942]
[1748013749029,0.20122538,109330.0,109320.0,1.3962]
[1748013749231,0.20122538,109330.0,109320.0,1.3982]
[1748013749651,0.20122538,109330.0,109320.0,1.3962]
[1748013749841,0.20122538,109330.0,109320.0,1.3982]
[1748013750430,0.29077094,109330.0,109320.0,0.78604]
[1748013750703,0.36881179,109330.0,109320.0,1.06016]
[1748013751750,0.36881179,109330.0,109320.0,1.05616]
[1748013752112,0.36881179,109330.0,109320.0,1.05716]
[1748013752360,0.36881179,109330.0,109320.0,1.05516]
[1748013752784,0.29077094,109330.0,109320.0,1.05516]
[1748013752989,0.29077094,109330.0,109320.0,1.12136]
[1748013754577,0.29077094,109330.0,109320.0,1.65345651]
[1748013754578,0.20122521,109330.0,109320.0,1.65345651]
[1748013754801,0.19207885,109330.0,109320.0,1.12004]
[1748013754998,0.19207885,109330.0,109320.0,0.72528]
[1748013755207,0.1829308,109340.0,109320.0,0.72528]
[1748013755409,0.29076784,109340.0,109330.0,0.34]
[1748013756049,0.29076784,109340.0,109330.0,0.476977]
[1748013756248,0.29076784,109340.0,109330.0,0.27416]
[1748013756599,0.20122228,109340.0,109330.0,0.4570924]
[1748013756813,0.20122228,109340.0,109330.0,0.86066555]
[1748013757418,0.19207658,109340.0,109330.0,0.86066555]
[1748013758186,0.19207658,109340.0,109330.0,1.75724002]
[1748013758302,0.19307658,109340.0,109330.0,1.025628]
[1748013758575,0.28262214,109340.0,109330.0,0.65944]
[1748013759781,0.26262214,109340.0,109330.0,0.65944]
[1748013761068,0.17307658,109340.0,109330.0,2.52232693]
[1748013761287,0.02843625,109340.0,109330.0,2.7501586]
[1748013761510,0.001,109340.0,109330.0,2.7501586]
[1748013761728,0.02843567,109340.0,109330.0,2.7501586]
[1748013761954,0.01929031,109340.0,109330.0,2.7501586]
[1748013762190,0.02843584,109340.0,109330.0,2.7501586]
[1748013762392,0.01829031,109340.0,109330.0,2.7501586]
[1748013762609,0.02743575,109340.0,109330.0,2.7501586]
[1748013762808,0.01829031,109340.0,109330.0,2.76089341]
[1748013763067,0.02743575,109340.0,109330.0,2.76089341]
[1748013763348,0.01829031,109340.0,109330.0,2.76089341]
[1748013763566,0.2453655,109370.0,109360.0,0.34]
[1748013763567,0.01828613,109370.0,109360.0,0.34]
[1748013763786,0.03657191,109370.0,109360.0,1.63635387]
[1748013764013,0.03657191,109370.0,109360.0,1.66935387]
[1748013764692,0.21943741,109370.0,109360.0,1.66935404]
[1748013764884,0.20365896,109370.0,109360.0,1.59421018]
[1748013765137,0.20365896,109370.0,109360.0,1.60335404]
[1748013765765,0.20565896,109370.0,109360.0,1.60335404]
[1748013766061,0.21480156,109370.0,109360.0,1.64519781]
[1748013766251,0.21480198,109370.0,109360.0,1.39304]
[1748013766464,0.20565896,109370.0,109360.0,1.39304]
[1748013767265,0.01364977,109370.0,109360.0,4.20137053]
[1748013767474,0.03193572,109370.0,109360.0,3.74903553]
[1748013767674,0.22394449,109370.0,109360.0,3.7490357]
[1748013767880,0.22394449,109370.0,109360.0,3.73074824]
[1748013768086,0.20565904,109370.0,109360.0,1.81764832]
[1748013768283,0.20565904,109370.0,109360.0,1.55848932]
[1748013768712,0.20565904,109370.0,109360.0,1.17424932]
[1748013768946,0.26895904,109370.0,109360.0,1.07356932]
[1748013769150,0.26895904,109370.0,109360.0,1.05296]
[1748013769498,0.40368538,109370.0,109360.0,1.05296]
[1748013769702,0.3585046,109370.0,109360.0,1.05296]
[1748013770668,0.3585046,109370.0,109360.0,0.39468]
[1748013770894,0.3585046,109370.0,109360.0,1.05292]
[1748013772536,0.37304545,109370.0,109360.0,0.77884]
[1748013772738,0.37304545,109370.0,109360.0,1.05292]
[1748013773282,0.43063487,109370.0,109360.0,0.39468]
[1748013773515,0.26275237,109360.0,109350.0,0.38416]
[1748013773711,0.35229793,109360.0,109350.0,0.65824]
[1748013774297,0.1920612,109340.0,109330.0,0.15546843]
[1748013774530,0.27246123,109340.0,109330.0,0.40430815]
[1748013775186,0.18291567,109340.0,109330.0,0.40430815]
[1748013775621,0.18291567,109340.0,109330.0,3.13373372]
[1748013775622,0.00914544,109340.0,109330.0,3.13373372]
[1748013775839,0.02743624,109340.0,109330.0,3.13373447]
[1748013776043,0.02743624,109340.0,109330.0,2.9052345]
[1748013776247,0.02743624,109340.0,109330.0,2.7545175]
[1748013776419,0.01829063,109340.0,109330.0,2.7545175]
[1748013776627,0.02743624,109340.0,109330.0,2.7545175]
[1748013776849,0.00914444,109350.0,109340.0,0.550352]
[1748013777063,0.00914394,109360.0,109350.0,0.19204321]
[1748013777272,0.68870717,109370.0,109360.0,0.20116985]
[1748013777502,0.01828562,109370.0,109360.0,1.66590272]
[1748013777706,0.03657191,109370.0,109360.0,1.65237837]
[1748013777912,0.02742872,109370.0,109360.0,1.65237837]
[1748013778257,0.20113445,109380.0,109370.0,0.1920086]
[1748013778476,0.20113445,109380.0,109370.0,0.65828]
[1748013778695,0.20113445,109380.0,109360.0,0.39464]
[1748013778696,0.20115137,109370.0,109360.0,0.39464]
[1748013778897,0.34335416,109370.0,109360.0,0.39464]
[1748013779100,0.34335416,109370.0,109360.0,1.05284]
[1748013780078,0.34340483,109370.0,109360.0,1.05284]
[1748013780713,0.34540483,109370.0,109360.0,1.05284]
[1748013780919,0.34540483,109370.0,109360.0,0.39464]
[1748013781168,0.34640483,109370.0,109360.0,1.05284]
[1748013781389,0.41387115,109370.0,109360.0,1.05284]
[1748013781598,0.36094568,109370.0,109360.0,1.05284]
[1748013781814,0.3813408,109370.0,109360.0,1.05284]
[1748013788065,1.0695408,109370.0,109360.0,1.05284]
[1748013788517,1.0695408,109370.0,109360.0,1.05288]